bitfinex/quotes_ETHUSD_20240922
["timestamp","ask_amount","ask_price","bid_price","bid_amount"]
[1726975269956,0.0385489,2611.4,2611.3,6.46963068]
[1726975271605,0.0385489,2611.4,2611.3,5.36993261]
[1726975271769,0.0385489,2611.4,2611.3,8.8669253]
[1726975271974,0.0385489,2611.4,2611.3,7.45690509]
[1726975272212,0.0385489,2611.4,2611.3,9.91686739]
[1726975272407,0.0385489,2611.4,2611.3,9.84030488]
[1726975272775,0.0385489,2611.4,2611.3,10.39030488]
[1726975274109,0.0385489,2611.4,2611.3,8.00690509]
[1726975274409,0.0385489,2611.4,2611.3,10.7876804]
[1726975274710,2.27369555,2612.2,2612.1,1.91416]
[1726975274869,2.27369555,2612.2,2612.1,4.91416]
[1726975293832,2.27369555,2612.2,2612.1,1.91416]
[1726975295434,2.27369555,2612.2,2612.0,1.91424]
[1726975295435,2.5010651,2612.2,2612.0,1.91424]
[1726975295936,2.5010651,2612.2,2612.0,1.91419]
[1726975299525,2.5010651,2612.2,2611.8,3.82867]
[1726975299730,2.5010651,2612.2,2612.0,1.91423]
[1726975301257,2.5010651,2612.2,2612.0,3.82846]
[1726975301553,2.5010651,2612.2,2612.0,1.91419]
[1726975301962,2.5010651,2612.2,2612.0,3.82838]
[1726975302324,2.5010651,2612.2,2612.0,1.91419]
[1726975303060,2.5010651,2612.2,2612.0,3.82838]
[1726975303242,2.5010651,2612.2,2612.0,1.91419]
[1726975303753,2.5010651,2612.2,2612.0,3.82839]
[1726975304660,2.5010651,2612.2,2612.0,1.91419]
[1726975306152,0.25010651,2612.1,2611.8,1.91434]
[1726975306349,2.4211,2612.0,2611.8,1.91434]
[1726975307853,2.4211,2612.0,2611.9,1.91431]
[1726975308864,2.4211,2612.0,2611.8,1.91433]
[1726975309229,2.4211,2612.0,2611.9,1.91431]
[1726975310570,2.87234101,2612.0,2611.9,1.91431]
[1726975311070,2.87234101,2612.0,2611.8,1.91436]
[1726975312575,4.48617508,2612.0,2611.8,1.91436]
[1726975314432,2.3333,2611.9,2611.2,7.38]
[1726975314633,0.25010651,2612.1,2611.4,1.91462]
[1726975314634,1.61383407,2611.5,2611.4,1.91462]
[1726975314935,1.61383407,2611.5,2611.3,1.91473]
[1726975315134,2.3333,2611.4,2611.2,3.82951]
[1726975315345,2.3333,2611.4,2611.2,1.91475]
[1726975316073,1.61383407,2611.3,2611.2,1.91475]
[1726975317181,2.3333,2611.4,2611.3,1.91475]
[1726975318346,2.3333,2611.9,2611.7,1.91441]
[1726975318550,2.3333,2611.9,2611.7,3.82882]
[1726975319033,2.3333,2611.9,2611.8,1.91438]
[1726975328977,2.2621,2612.3,2612.2,1.91409]
[1726975334377,2.2621,2612.3,2612.1,3.82832]
[1726975334579,2.2621,2612.3,2612.2,1.91409]
[1726975338853,2.2621,2612.3,2612.1,1.91412]
[1726975339887,2.2621,2612.3,2612.2,1.91409]
[1726975345892,2.8765,2612.9,2612.4,1.91393]
[1726975346210,2.3265,2612.7,2612.4,1.91393]
[1726975346410,2.3265,2612.7,2612.4,1.91389]
[1726975348818,0.48285989,2612.8,2612.6,1.9138]
[1726975349027,1.61438575,2612.9,2612.6,1.9138]
[1726975349184,1.61438575,2612.9,2612.6,3.82748]
[1726975349380,1.61438575,2612.9,2612.6,1.91374]
[1726975349891,1.61438575,2612.7,2612.6,1.91374]
[1726975351625,3.94258575,2612.7,2612.4,1.9139]
[1726975351922,0.39425858,2612.6,2612.4,3.8278]
[1726975352225,3.94258575,2612.7,2612.5,1.91387]
[1726975353300,2.3282,2612.7,2612.5,1.91387]
[1726975354226,2.273,2612.9,2612.6,1.9138]
[1726975354413,3.88738575,2612.9,2612.5,1.91387]
[1726975354622,4.27997922,2612.9,2612.5,1.91387]
[1726975355899,4.27997922,2612.9,2612.7,1.9137]
[1726975357818,2.273,2612.9,2612.7,1.9137]
[1726975359341,2.273,2612.9,2612.5,3.82769]
[1726975359342,3.83738575,2612.9,2612.5,3.82769]
[1726975359539,3.83738575,2612.9,2612.6,1.91379]
[1726975359748,0.38759347,2612.8,2612.6,1.91379]
[1726975361134,0.38759347,2612.8,2612.5,3.82764]
[1726975361739,0.38759347,2612.8,2612.5,1.91382]
[1726975362308,1.61438575,2612.7,2612.5,1.91382]
[1726975366372,0.38759347,2612.8,2612.5,1.91382]
[1726975367365,3.83738575,2612.9,2612.5,1.91382]
[1726975367833,3.83738575,2612.9,2612.5,3.82765]
[1726975368039,3.83738575,2612.9,2612.5,1.91382]
[1726975369031,3.83738575,2612.9,2612.5,3.82764]
[1726975369232,3.83738575,2612.9,2612.5,1.91382]
[1726975369533,4.41632322,2612.9,2612.5,1.91382]
[1726975369731,4.41632322,2612.9,2612.5,3.82764]
[1726975370333,4.41632322,2612.9,2612.5,1.91382]
[1726975370754,4.41632322,2612.9,2612.5,3.82764]
[1726975370970,4.41632322,2612.9,2612.5,1.91232812]
[1726975371265,1.61438575,2612.7,2612.4,1.91394]
[1726975371837,1.61438575,2612.7,2612.5,1.91387]
[1726975372947,1.61438575,2612.7,2612.3,1.91396]
[1726975373157,1.61438575,2612.5,2612.3,1.91396]
[1726975374553,1.61438575,2612.7,2612.3,1.91396]
[1726975374748,2.29192479,2612.7,2612.3,1.91396]
[1726975375388,2.223,2612.9,2612.5,1.91387]
[1726975378179,2.223,2612.9,2612.5,1.91383]
[1726975378364,2.223,2612.9,2612.5,3.82765]
[1726975378553,2.223,2612.9,2612.5,1.91382]
[1726975379371,1.61438575,2612.8,2612.5,1.91382]
[1726975380892,1.61438575,2612.6,2612.3,1.91399]
[1726975382605,2.3272,2612.5,2612.1,1.91411]
[1726975382916,2.3272,2612.5,2612.2,1.91405]
[1726975383196,2.3272,2612.5,2612.3,1.91402]
[1726975385805,2.3272,2612.5,2612.0,7.38]
[1726975385806,1.61438575,2612.4,2612.0,7.38]
[1726975385993,1.61438575,2612.2,2612.0,7.38]
[1726975386304,1.61438575,2612.2,2611.9,3.8285]
[1726975386664,1.61438575,2612.2,2612.0,1.91423]
[1726975386865,1.61438575,2612.2,2611.9,1.91425]
[1726975387070,1.61438575,2612.2,2611.9,3.82852]
[1726975387270,1.61438575,2612.2,2611.9,1.91425]
[1726975388166,1.61438575,2612.2,2611.5,1.91458]
[1726975388167,1.61438575,2612.0,2611.5,1.91457]
[1726975388369,4.38967,2612.1,2611.5,1.91456]
[1726975388370,1.61438575,2611.8,2611.5,1.91456]
[1726975389489,1.61438575,2611.6,2611.3,1.91468]
[1726975394624,1.61438575,2611.6,2611.0,2.09266]
[1726975394625,1.61438575,2611.4,2611.0,2.09266]
[1726975394811,1.61438575,2611.4,2610.9,1.91503]
[1726975395120,2.3023,2611.3,2610.9,1.91503]
[1726975395617,2.3023,2611.3,2610.8,2.0928]
[1726975395824,2.3023,2611.3,2610.8,4.00787]
[1726975395979,2.3023,2611.3,2610.8,1.91507]
[1726975396319,2.3023,2610.9,2610.5,8.33]
[1726975396524,1.61438575,2610.7,2610.5,0.95]
[1726975396725,3.52958575,2610.7,2610.5,0.95]
[1726975397046,1.91526,2610.6,2610.5,0.95]
[1726975397388,4.21756,2610.6,2610.5,0.95]
[1726975397589,4.99227458,2610.6,2610.5,0.95]
[1726975398040,8.49506469,2610.6,2610.5,0.95]
[1726975399342,9.04506469,2610.6,2610.5,0.95]
[1726975400790,9.04506469,2610.6,2610.5,0.45179465]
[1726975401794,4.21806,2610.0,2609.8,0.0385489]
[1726975402002,5.41857011,2609.9,2609.8,0.0385489]
[1726975402816,5.96857011,2609.9,2609.8,0.0385489]
[1726975404644,2.3023,2610.4,2609.8,0.0385489]
[1726975404932,4.21776,2610.4,2609.8,0.0385489]
[1726975405095,5.31187003,2610.4,2609.8,0.0385489]
[1726975405722,1.91549,2610.3,2609.8,0.0385489]
[1726975406038,3.50279011,2610.2,2609.8,0.0385489]
[1726975406499,5.41836011,2610.2,2609.8,0.0385489]
[1726975407497,0.54183601,2610.1,2609.8,0.0385489]
[1726975408404,5.41836011,2610.2,2609.8,0.0385489]
[1726975411263,3.50279011,2610.2,2609.8,0.0385489]
[1726975413042,5.31187003,2610.4,2609.9,2.09347]
[1726975413043,3.39641003,2610.4,2609.9,2.09347]
[1726975413248,3.9035438,2610.5,2609.9,2.09347]
[1726975413249,3.9035438,2610.5,2610.0,1.91569]
[1726975415247,4.48542618,2610.5,2610.0,1.91569]
[1726975415465,6.40077618,2610.5,2609.9,0.1777]
[1726975415749,4.48542618,2610.5,2609.9,0.1777]
[1726975415945,4.48542618,2610.5,2609.9,2.09343]
[1726975417363,6.40077618,2610.5,2609.9,2.09343]
[1726975419772,6.40077618,2610.5,2609.9,0.1777]
[1726975420540,6.40077618,2610.5,2609.9,2.09347]
[1726975422059,0.83160562,2610.4,2609.9,1.91577]
[1726975422259,1.91568,2610.1,2609.8,0.0385489]
[1726975422467,3.50279011,2609.9,2609.8,0.0385489]
[1726975422758,5.41857011,2609.9,2609.8,0.0385489]
[1726975422959,6.15200312,2609.9,2609.8,0.0385489]
[1726975424156,4.23622312,2609.9,2609.8,0.0385489]
[1726975425129,6.15200312,2609.9,2609.8,0.0385489]
[1726975425537,8.50180312,2609.9,2609.8,0.0385489]
[1726975426545,9.05180312,2609.9,2609.8,0.0385489]
[1726975442495,12.05180312,2609.9,2609.8,0.0385489]
[1726975450121,10.1673372,2609.9,2609.8,0.0385489]
[1726975451813,10.1673372,2609.9,2609.0,0.0385489]
[1726975452021,6.40668419,2609.1,2609.0,0.0385489]
[1726975453989,8.29658914,2609.1,2609.0,0.0385489]
[1726975454186,5.97458914,2609.1,2609.0,0.0385489]
[1726975468447,2.46636,2609.1,2609.0,0.0385489]
[1726975468656,5.42440914,2609.4,2609.0,0.2547489]
[1726975468821,0.40094054,2609.5,2609.0,0.2547489]
[1726975469137,5.42425914,2609.6,2609.0,1.9549689]
[1726975469339,5.42425914,2609.6,2609.1,0.2162]
[1726975470072,3.50822914,2609.3,2609.1,0.2162]
[1726975475268,3.50822914,2609.3,2609.1,2.13255]
[1726975477485,3.50822914,2609.3,2609.1,4.04886]
[1726975477658,3.50822914,2609.3,2609.1,2.13251]
[1726975479281,3.50822914,2609.3,2609.2,1.91629]
[1726975479482,3.50822914,2609.6,2609.1,4.04882]
[1726975479686,3.50822914,2609.6,2609.2,1.91629]
[1726975480259,1.91593,2609.7,2609.2,1.91629]
[1726975480457,3.50822914,2609.5,2609.2,1.91629]
[1726975484079,1.61819449,2609.3,2609.2,1.91629]
[1726975485383,1.61819449,2609.3,2609.1,0.2162]
[1726975485886,1.61819449,2609.3,2609.1,2.13256]
[1726975486698,1.61819449,2609.3,2609.1,0.2162]
[1726975486902,1.61819449,2609.3,2609.1,2.13255]
[1726975488810,2.4272,2609.7,2609.1,2.13255]
[1726975488955,1.61819449,2609.4,2609.2,1.91625]
[1726975490504,1.61819449,2609.4,2609.1,0.2162]
[1726975490699,1.61819449,2609.6,2609.2,1.91624]
[1726975490997,1.61819449,2609.6,2609.3,1.91621]
[1726975492175,1.61819449,2609.6,2609.2,1.91629]
[1726975493408,1.61819449,2609.4,2609.2,1.91629]
[1726975495799,1.61819449,2609.4,2609.3,1.91622]
[1726975499309,1.61819449,2609.4,2609.1,4.04888]
[1726975499721,1.61819449,2609.4,2609.2,1.91629]
[1726975500211,1.61819449,2609.4,2609.1,2.13252]
[1726975500434,1.61819449,2609.2,2609.0,0.0385489]
[1726975500724,1.61819449,2609.2,2609.0,1.9549689]
[1726975501294,2.31674808,2609.8,2609.2,1.91624]
[1726975501295,1.61819449,2609.4,2609.2,1.91624]
[1726975502088,0.40087808,2609.8,2609.7,1.91592]
[1726975502290,0.40087808,2609.8,2609.7,2.13212]
[1726975502516,1.91531,2610.6,2609.7,0.076636]
[1726975502517,2.3947,2610.6,2609.7,0.076636]
[1726975502717,1.61819449,2610.5,2610.2,0.2162]
[1726975503012,3.60389089,2610.6,2610.0,1.91564]
[1726975503013,1.61819449,2610.3,2610.0,1.91564]
[1726975503422,5.91986355,2610.6,2609.6,0.2162]
[1726975503423,4.01289449,2610.1,2609.6,0.2162]
[1726975503714,1.61819449,2609.7,2609.6,0.2162]
[1726975503912,3.50473768,2609.9,2609.6,0.2162]
[1726975504114,4.09468145,2609.9,2609.6,0.2162]
[1726975504325,4.09468145,2609.9,2609.6,2.13215]
[1726975505188,4.09468145,2609.9,2609.6,0.2162]
[1726975505391,4.09468145,2609.9,2609.4,1.91614]
[1726975505577,2.3947,2609.8,2609.4,1.91614]
[1726975505780,3.50473768,2609.6,2609.2,1.91623]
[1726975506214,0.64893815,2609.7,2609.0,1.9549589]
[1726975506215,3.50473768,2609.3,2609.0,1.9549589]
[1726975506606,3.50473768,2609.3,2609.0,0.0385489]
[1726975510839,3.50473768,2609.3,2609.0,1.9549889]
[1726975518821,3.50473768,2609.3,2609.0,0.0385489]
[1726975519030,0.58994377,2609.2,2609.0,0.0385489]
[1726975524012,1.61841348,2609.1,2609.0,0.0385489]
[1726975524221,0.58994377,2609.2,2609.0,0.0385489]
[1726975524429,1.61841348,2609.2,2609.0,0.0385489]
[1726975530380,2.3947,2609.4,2609.0,0.0385489]
[1726975530669,1.61841348,2609.3,2609.0,1.9549589]
[1726975542671,1.61841348,2609.3,2609.0,3.8713489]
[1726975542975,1.61841348,2609.3,2609.0,1.9549389]
[1726975543138,2.01972483,2609.3,2609.0,1.9549389]
[1726975544779,3.90781348,2609.1,2609.0,0.0385489]
[1726975544984,6.37417348,2609.1,2609.0,0.0385489]
[1726975546860,9.37417348,2609.1,2609.0,0.0385489]
[1726975547050,10.54335596,2609.1,2609.0,0.0385489]
[1726975549591,10.54335596,2609.1,2608.2,0.0385489]
[1726975549592,2.2699,2608.7,2608.2,0.0385489]
[1726975549775,1.61841348,2608.3,2608.2,0.0385489]
[1726975549977,1.61841348,2608.4,2608.2,1.9555789]
[1726975550300,1.61841348,2608.4,2608.2,2.2103789]
[1726975553221,1.61841348,2608.4,2608.2,0.0385489]
[1726975555283,4.46982983,2608.4,2608.2,0.0385489]
[1726975558286,2.46695,2608.3,2608.2,0.0385489]
[1726975558487,4.96045,2608.3,2608.2,0.0385489]
[1726975558692,6.57886348,2608.3,2608.2,0.0385489]
[1726975561132,4.96045,2608.3,2608.2,0.0385489]
[1726975561429,7.30195212,2608.3,2608.2,0.0385489]
[1726975566249,5.68353864,2608.3,2608.2,0.0385489]
[1726975566661,4.80845212,2608.3,2608.2,0.0385489]
[1726975569547,7.14835212,2608.3,2608.2,0.0385489]
[1726975573455,1.27308864,2608.3,2608.2,0.0385489]
[1726975573664,2.3246,2608.7,2608.2,1.9555689]
[1726975573854,1.61841348,2608.5,2608.3,0.2548]
[1726975575880,1.61841348,2608.5,2608.2,0.0385489]
[1726975576076,3.50924767,2608.4,2608.2,0.0385489]
[1726975582174,2.8746,2608.7,2608.2,0.0385489]
[1726975582416,0.55,2608.7,2608.2,1.9555189]
[1726975582581,2.12304677,2608.7,2608.2,1.9555189]
[1726975584381,5.42586767,2608.8,2608.5,1.91676]
[1726975584382,3.50924767,2608.8,2608.5,1.91676]
[1726975584579,3.50924767,2608.8,2608.6,0.2548]
[1726975584817,0.40099275,2609.0,2608.6,0.2548]
[1726975584818,0.40099275,2609.0,2608.9,1.91651]
[1726975585117,0.40099275,2609.0,2608.8,1.91658]
[1726975585419,3.50924767,2609.4,2608.8,1.91658]
[1726975585420,5.42543767,2609.4,2608.8,1.91658]
[1726975585718,0.73415577,2609.3,2608.8,1.91658]
[1726975585928,3.50924767,2609.1,2608.6,2.17149]
[1726975586149,3.50924767,2609.1,2608.6,2.17148]
[1726975587524,3.50924767,2609.1,2608.7,1.91659]
[1726975587679,3.50924767,2609.1,2608.8,1.91655]
[1726975588019,3.50924767,2609.1,2608.7,1.91659]
[1726975589383,3.50924767,2609.1,2608.7,3.83321]
[1726975589629,3.50924767,2609.1,2608.7,1.91659]
[1726975590630,3.50924767,2609.1,2608.8,1.91657]
[1726975596027,1.61860693,2609.0,2608.8,1.91657]
[1726975602119,1.61860693,2609.0,2608.9,1.91651]
[1726975603368,1.61860693,2609.0,2608.6,2.17149]
[1726975603537,1.61860693,2609.0,2608.8,1.91658]
[1726975609359,3.89720693,2609.0,2608.6,2.17148]
[1726975609514,1.61860693,2608.8,2608.6,2.17148]
[1726975622681,2.2786,2609.0,2608.6,2.17148]
[1726975622882,3.89720693,2609.0,2608.6,2.17148]
[1726975625324,3.89720693,2609.0,2608.6,0.2548]
[1726975625508,1.61860693,2608.8,2608.4,2.17163]
[1726975625710,1.61860693,2608.6,2608.2,2.2103289]
[1726975625924,4.04300693,2608.6,2608.2,2.2103289]
[1726975626114,1.61860693,2608.4,2608.2,1.9555289]
[1726975627530,1.61860693,2608.4,2608.2,0.0385489]
[1726975628708,3.93980762,2608.4,2608.2,0.0385489]
[1726975629133,2.2595,2608.3,2608.2,0.0385489]
[1726975629501,4.17645,2608.3,2608.2,0.0385489]
[1726975629893,4.72645,2608.3,2608.2,0.0385489]
[1726975637445,4.22846,2608.6,2608.2,0.0385489]
[1726975637759,1.61860693,2608.5,2608.2,0.0385489]
[1726975638056,1.61860693,2608.3,2608.2,0.0385489]
[1726975640024,4.08555693,2608.3,2608.2,0.0385489]
[1726975640270,6.39725693,2608.3,2608.2,0.0385489]
[1726975651496,9.39725693,2608.3,2608.2,0.0385489]
[1726975651793,10.52867462,2608.3,2608.2,0.0385489]
[1726975655298,7.52867462,2608.3,2608.2,0.0385489]
[1726975656255,3.04836769,2608.3,2608.2,0.0385489]
[1726975656460,3.53555693,2608.3,2608.2,0.0385489]
[1726975657898,4.08555693,2608.3,2608.2,0.0385489]
[1726975658456,6.55625693,2608.3,2608.2,0.0385489]
[1726975660360,6.95729421,2608.3,2608.2,0.0385489]
[1726975670014,5.33868728,2608.3,2608.2,0.0385489]
[1726975670173,4.48659421,2608.3,2608.2,0.0385489]
[1726975670975,7.67498563,2608.3,2608.2,0.0385489]
[1726975673897,10.67498563,2608.3,2608.2,0.0385489]
[1726975675192,14.71498563,2608.3,2608.2,0.0385489]
[1726975675372,10.67498563,2608.3,2608.2,0.0385489]
[1726975684043,10.67498563,2608.3,2607.5,0.0385489]
[1726975684045,0.55,2607.6,2607.5,0.0385489]
[1726975685166,2.46747,2607.6,2607.5,0.0385489]
[1726975686783,0.55,2607.6,2607.5,0.0385489]
[1726975687446,4.59026861,2607.9,2607.5,0.2933489]
[1726975687447,1.91734,2607.8,2607.5,0.2933489]
[1726975687651,3.53594693,2607.8,2607.5,0.2933489]
[1726975688972,1.61860693,2607.8,2607.5,0.2933489]
[1726975689541,1.61860693,2607.6,2607.5,0.2933489]
[1726975692310,0.40108861,2607.9,2607.8,0.2548]
[1726975692515,7.43,2608.2,2607.9,1.9172]
[1726975692687,1.61860693,2608.3,2608.0,2.17197]
[1726975693022,1.61860693,2608.1,2608.0,2.17197]
[1726975694196,1.61860693,2608.1,2608.0,0.2548]
[1726975694718,1.61860693,2608.1,2607.8,0.2548]
[1726975694934,1.61860693,2607.9,2607.8,0.2548]
[1726975696540,1.60787521,2607.9,2607.8,0.2548]
[1726975697300,1.60787521,2607.9,2607.8,2.17212]
[1726975699136,0.55,2608.2,2607.8,1.91732]
[1726975699336,0.55,2608.5,2608.0,1.91717]
[1726975699511,1.61860693,2608.3,2608.0,1.91717]
[1726975713330,1.61860693,2608.3,2608.0,3.8343]
[1726975715269,1.61860693,2608.3,2608.0,1.91713]
[1726975716866,1.61860693,2608.3,2608.0,3.83426]
[1726975717457,1.61860693,2608.1,2607.7,0.2548]
[1726975717663,0.21686069,2608.3,2607.5,0.0385489]
[1726975717664,1.61860693,2607.8,2607.5,0.0385489]
[1726975717991,2.16860693,2607.6,2607.5,0.0385489]
[1726975718146,4.46350693,2607.6,2607.5,0.0385489]
[1726975718488,6.38097693,2607.6,2607.5,0.0385489]
[1726975724969,7.21081562,2607.6,2607.5,0.0385489]
[1726975727001,5.59220869,2607.6,2607.5,0.0385489]
[1726975727176,7.21081562,2607.6,2607.5,0.0385489]
[1726975728507,3.55,2607.8,2607.5,0.0385489]
[1726975728664,4.17787,2607.9,2607.5,0.0385489]
[1726975728864,1.61860693,2607.7,2607.5,0.0385489]
[1726975730813,1.61860693,2607.7,2607.5,0.0286339]
[1726975732819,0.55,2607.8,2607.5,1.9461539]
[1726975733105,2.16860693,2607.8,2607.6,0.2548]
[1726975738719,0.55,2607.8,2607.6,0.2548]
[1726975738916,1.61860693,2607.7,2607.6,0.2548]
[1726975739219,1.61860693,2607.7,2607.0,3.07670367]
[1726975739220,4.79501,2607.6,2606.9,2.17272]
[1726975739424,1.61860693,2607.3,2606.9,2.17272]
[1726975739787,1.61860693,2607.3,2607.1,1.91783]
[1726975740025,0.44292069,2607.7,2607.2,0.2548]
[1726975740026,0.55,2607.7,2607.2,0.2548]
[1726975740216,1.61860693,2607.4,2607.2,0.2548]
[1726975746249,1.61860693,2607.4,2607.2,2.17255]
[1726975746410,0.55,2607.7,2607.3,1.91769]
[1726975746616,2.16860693,2607.7,2607.3,1.91764]
[1726975748328,1.61860693,2607.5,2607.3,1.91764]
[1726975761581,2.16860693,2607.7,2607.3,1.91764]
[1726975762370,1.61860693,2607.5,2607.3,1.91764]
[1726975764198,1.61860693,2607.5,2607.2,0.2548]
[1726975765290,1.61860693,2607.5,2607.2,2.17254]
[1726975768470,1.61860693,2607.3,2607.0,2.1727]
[1726975769394,2.4055,2607.4,2606.8,5.17281]
[1726975769395,1.61860693,2607.1,2606.8,5.17281]
[1726975770395,1.61860693,2607.1,2606.7,9.3366089]
[1726975770396,1.61860693,2606.9,2606.7,9.3366089]
[1726975770559,1.61860693,2607.1,2606.7,1.9566089]
[1726975774105,2.2516,2607.0,2606.7,1.9566089]
[1726975777675,1.61860693,2606.9,2606.7,0.0385489]
[1726975779307,0.38702069,2606.8,2606.7,0.0385489]
[1726975781356,2.85508069,2606.8,2606.7,0.0385489]
[1726975781472,5.22298069,2606.8,2606.7,0.0385489]
[1726975784019,3.30492069,2606.8,2606.7,0.0385489]
[1726975784189,5.22298069,2606.8,2606.7,0.0385489]
[1726975784579,2.79724866,2607.3,2606.7,0.0385489]
[1726975784883,1.61860693,2607.2,2606.9,0.2548]
[1726975790040,1.61860693,2607.2,2607.0,1.91786]
[1726975794317,4.11540693,2607.2,2606.8,1.91801]
[1726975794523,1.61860693,2607.0,2606.8,1.91801]
[1726975794733,1.61860693,2607.0,2606.8,3.83602]
[1726975795232,1.61860693,2607.0,2606.8,1.91801]
[1726975795822,1.61860693,2607.0,2606.9,1.91798]
[1726975796936,1.61860693,2607.0,2606.8,1.91801]
[1726975797451,1.61860693,2607.0,2606.8,3.83602]
[1726975798852,1.61860693,2607.0,2606.8,1.91801]
[1726975799045,1.61860693,2607.0,2606.8,1.918]
[1726975799248,1.61860693,2607.0,2606.8,3.836]
[1726975799757,1.61860693,2607.0,2606.8,1.918]
[1726975800667,1.61860693,2607.2,2606.8,1.918]
[1726975800866,1.61860693,2607.2,2606.9,2.17274]
[1726975803231,1.61860693,2607.2,2606.9,0.2548]
[1726975803450,1.97223062,2607.2,2606.9,0.2548]
[1726975804764,1.97223062,2607.2,2606.9,2.17278]
[1726975804953,1.61860693,2607.2,2606.9,0.2548]
[1726975805966,2.16860693,2607.4,2607.0,1.9179]
[1726975808178,1.61860693,2607.4,2607.1,1.91783]
[1726975808537,1.61860693,2607.4,2606.9,0.2548]
[1726975808742,2.7332129,2607.7,2607.4,1.91761]
[1726975808964,0.27332129,2607.6,2607.4,1.91761]
[1726975809358,1.89192822,2607.6,2607.3,0.2548]
[1726975809683,1.89192822,2607.6,2607.3,2.17249]
[1726975819357,1.89192822,2607.6,2607.3,1.91769]
[1726975820477,1.89192822,2607.6,2607.1,2.1726]
[1726975820478,1.61860693,2607.4,2607.1,2.17258]
[1726975820679,1.61860693,2607.4,2607.2,1.91776]
[1726975829080,3.93710693,2607.4,2607.2,1.91776]
[1726975829678,4.35814975,2607.4,2606.9,1.91797]
[1726975829903,1.61860693,2607.2,2606.9,1.91797]
[1726975832423,2.3185,2607.1,2606.9,1.91797]
[1726975838730,1.61860693,2607.2,2606.9,1.91797]
[1726975838731,1.61860693,2607.2,2606.9,1.91794]
[1726975839039,0.42104282,2607.4,2606.9,1.91794]
[1726975839040,3.96210693,2607.5,2607.1,1.91777]
[1726975839240,4.18119106,2607.5,2607.1,1.91777]
[1726975845233,2.3435,2607.7,2607.2,1.91772]
[1726975845433,2.3435,2607.7,2607.3,0.2548]
[1726975845640,3.96210693,2607.7,2607.3,0.2548]
[1726975846738,3.96210693,2607.7,2607.2,1.91772]
[1726975846915,3.96210693,2607.7,2607.3,1.91764]
[1726975847113,4.59014993,2607.7,2607.3,1.91764]
[1726975847760,1.61860693,2607.5,2607.0,3.83573]
[1726975847909,1.61860693,2607.3,2607.0,1.91786]
[1726975848249,1.61860693,2607.3,2607.0,3.83572]
[1726975849650,1.61860693,2607.1,2606.9,1.91798]
[1726975854026,1.61860693,2607.3,2606.9,1.91798]
[1726975854334,2.3435,2607.4,2607.1,1.91781]
[1726975854532,2.16860693,2607.6,2607.2,1.91775]
[1726975854731,3.64872377,2607.6,2607.2,1.91775]
[1726975855564,1.61860693,2607.4,2607.2,1.91775]
[1726975855864,3.87460693,2607.4,2607.0,1.91785]
[1726975856623,3.87460693,2607.4,2607.0,3.83571]
[1726975862082,3.87460693,2607.4,2607.1,1.91783]
[1726975864588,1.61860693,2607.2,2606.8,1.918]
[1726975864944,1.61860693,2607.2,2606.8,3.83601]
[1726975865377,1.61860693,2607.2,2606.8,1.918]
[1726975865769,1.61860693,2607.2,2606.8,3.836]
[1726975865965,2.256,2607.1,2606.8,1.918]
[1726975867697,2.256,2607.1,2606.7,0.0385489]
[1726975867698,0.55,2606.9,2606.7,0.0385489]
[1726975867850,3.87460693,2606.8,2606.7,0.0385489]
[1726975868051,4.42460693,2606.8,2606.7,0.0385489]
[1726975868283,4.08666693,2606.8,2606.7,0.0385489]
[1726975868597,6.46736693,2606.8,2606.7,0.0385489]
[1726975868888,5.38784162,2606.8,2606.7,0.0385489]
[1726975869097,2.3807,2606.8,2606.7,0.0385489]
[1726975869251,2.3190359,2607.1,2606.7,0.0385489]
[1726975869252,1.61860693,2606.9,2606.7,0.0385489]
[1726975877877,0.4011659,2607.1,2606.7,0.0385489]
[1726975878080,0.4011659,2607.1,2606.9,1.91797]
[1726975878471,1.61860693,2607.2,2606.9,1.91797]
[1726975880702,2.3723,2607.3,2606.9,1.91797]
[1726975880906,3.99090693,2607.3,2606.9,1.91797]
[1726975884407,1.61860693,2607.1,2606.9,1.91797]
[1726975885400,1.61860693,2607.1,2606.8,0.2548]
[1726975885603,2.3723,2607.6,2606.9,1.91795]
[1726975885843,1.61860693,2607.5,2607.1,1.91777]
[1726975887098,1.61860693,2607.3,2607.1,1.91777]
[1726975889298,3.95190693,2607.3,2606.8,0.2548]
[1726975889499,3.95190693,2607.3,2606.9,1.91798]
[1726975894734,3.95190693,2607.3,2606.7,1.9566389]
[1726975894735,2.4088,2607.0,2606.7,0.0385489]
[1726975895051,2.4088,2607.0,2606.7,1.9566789]
[1726975895750,2.4088,2607.0,2606.7,0.0385489]
[1726975895751,1.61860693,2606.9,2606.7,0.0385489]
[1726975898542,4.32672,2607.0,2606.7,0.0385489]
[1726975901049,2.4088,2607.0,2606.7,0.0385489]
[1726975902264,2.4088,2607.2,2606.7,2.2114789]
[1726975902419,2.4088,2607.4,2606.9,1.91794]
[1726975902613,9.04860693,2607.5,2607.0,2.17266]
[1726975902943,10.20802492,2607.5,2607.0,2.17266]
[1726975903137,2.77802492,2607.5,2607.0,2.17266]
[1726975907537,1.61860693,2607.5,2607.2,1.91775]
[1726975908248,4.42850741,2607.6,2607.2,1.91775]
[1726975910795,4.42850741,2607.6,2607.3,0.33150708]
[1726975910796,0.40110048,2607.6,2607.3,0.33150708]
[1726975910931,0.40110048,2607.6,2607.5,2.17234]
[1726975911134,1.71898029,2608.3,2607.9,0.2548]
[1726975911358,1.71898029,2608.3,2607.9,2.172]
[1726975911771,1.71898029,2608.3,2607.9,0.2548]
[1726975916544,1.71898029,2608.3,2607.9,2.17204]
[1726975920947,1.71898029,2608.3,2607.9,0.33148641]
[1726975921188,1.71898029,2608.3,2608.2,1.91703]
[1726975921390,1.71898029,2608.3,2608.2,2.17183]
[1726975927882,0.40099,2608.6,2608.5,1.91681]
[1726975928083,0.40099,2608.6,2608.5,2.17161]
[1726975928293,1.61860693,2609.0,2608.6,1.91672]
[1726975928492,2.01955402,2609.0,2608.6,1.91672]
[1726975932223,1.61860693,2609.0,2608.6,1.91672]
[1726975932517,0.40093692,2608.9,2608.6,1.91672]
[1726975934209,0.40093692,2608.9,2608.5,2.17159]
[1726975934796,0.40093692,2608.9,2608.5,0.2548]
[1726975935821,0.40093692,2608.9,2608.5,2.1716]
[1726975940580,1.61860693,2609.0,2608.5,2.1716]